Workbook

Sheet 【図2-1】
A1: 図２－１
A2: 性別
B3: 1. 50人未満 | C3: 2. 50人以上300人未満 | D3: 3. 300人以上1,000人未満 | E3: 4. 1,000人以上5,000人未満 | F3: 5. 5,000人以上 | G3: 6. 公務 | H3: 総計
A4: 1. 男性 | B4: 43 | C4: 65 | D4: 51 | E4: 34 | F4: 57 | G4: 363 | H4: 613
A5: 2. 女性 | B5: 77 | C5: 66 | D5: 37 | E5: 40 | F5: 30 | G5: 137 | H5: 387
A6: 総計 | B6: 120 | C6: 131 | D6: 88 | E6: 74 | F6: 87 | G6: 500 | H6: 1000
B8: 5000人以上（N=87） | C8: 1000人以上5000人未満（N=74） | D8: 300人以上1000人未満（N=88） | E8: 50人以上300人未満（N=131） | F8: 50人未満（N=120） | G8: 民間企業従業員 全体(N=500） | H8: 国家公務員（N=500）
A9: 男性 | B9: =F4/F6 -> 0.6551724138 | C9: =E4/E6 -> 0.4594594595 | D9: =D4/D6 -> 0.5795454545 | E9: =C4/C6 -> 0.4961832061 | F9: =B4/B6 -> 0.3583333333 | G9: =SUM(B4:F4)/SUM(B6:F6) -> 0.5 | H9: =G4/G6 -> 0.726
A10: 女性 | B10: =F5/F6 -> 0.3448275862 | C10: =E5/E6 -> 0.5405405405 | D10: =D5/D6 -> 0.4204545455 | E10: =C5/C6 -> 0.5038167939 | F10: =B5/B6 -> 0.6416666667 | G10: =SUM(B5:F5)/SUM(B6:F6) -> 0.5 | H10: =G5/G6 -> 0.274

Sheet 【図2-2】
A1: 図２－２
A2: 年齢
B3: 1. 50人未満 | C3: 2. 50人以上300人未満 | D3: 3. 300人以上1,000人未満 | E3: 4. 1,000人以上5,000人未満 | F3: 5. 5,000人以上 | G3: 6. 公務 | H3: 総計
A4: 1. 24歳以下 | B4: 10 | C4: 25 | D4: 15 | E4: 10 | F4: 14 | G4: 18 | H4: 92
A5: 2. 25～29歳 | B5: 13 | C5: 17 | D5: 8 | E5: 7 | F5: 8 | G5: 41 | H5: 94
A6: 30歳未満 | B6: =B4+B5 -> 23 | C6: =C4+C5 -> 42 | D6: 23 | E6: 17 | F6: 22 | G6: 59 | H6: =H4+H5 -> 186
A7: 3. 30～34歳 | B7: 12 | C7: 13 | D7: 11 | E7: 5 | F7: 18 | G7: 48 | H7: 107
A8: 4. 35～39歳 | B8: 14 | C8: 17 | D8: 16 | E8: 10 | F8: 7 | G8: 59 | H8: 123
A9: 30代 | B9: =B7+B8 -> 26 | C9: =C7+C8 -> 30 | D9: =D7+D8 -> 27 | E9: =E7+E8 -> 15 | F9: =F7+F8 -> 25 | G9: =G7+G8 -> 107 | H9: =H7+H8 -> 230
A10: 5. 40～44歳 | B10: 14 | C10: 11 | D10: 6 | E10: 5 | F10: 10 | G10: 60 | H10: 106
A11: 6. 45～49歳 | B11: 11 | C11: 16 | D11: 10 | E11: 13 | F11: 9 | G11: 75 | H11: 134
A12: 40代 | B12: =B10+B11 -> 25 | C12: =C10+C11 -> 27 | D12: =D10+D11 -> 16 | E12: =E10+E11 -> 18 | F12: =F10+F11 -> 19 | G12: =G10+G11 -> 135 | H12: =H10+H11 -> 240
A13: 7. 50～54歳 | B13: 15 | C13: 13 | D13: 5 | E13: 10 | F13: 7 | G13: 80 | H13: 130
A14: 8. 55～59歳 | B14: 14 | C14: 10 | D14: 7 | E14: 11 | F14: 5 | G14: 63 | H14: 110
A15: 50代 | B15: =B13+B14 -> 29 | C15: =C13+C14 -> 23 | D15: =D13+D14 -> 12 | E15: =E13+E14 -> 21 | F15: =F13+F14 -> 12 | G15: =G13+G14 -> 143 | H15: =H13+H14 -> 240
A16: 9. 60～65歳 | B16: 17 | C16: 9 | D16: 10 | E16: 3 | F16: 9 | G16: 56 | H16: 104
A17: 総計 | B17: 120 | C17: 131 | D17: 88 | E17: 74 | F17: 87 | G17: 500 | H17: 1000
B19: 1. 50人未満 | C19: 2. 50人以上300人未満 | D19: 3. 300人以上1,000人未満 | E19: 4. 1,000人以上5,000人未満 | F19: 5. 5,000人以上 | G19: 民間全体 | H19: 6. 公務
A20: 30歳未満 | B20: =B6/B$17 -> 0.1916666667 | C20: =C6/C$17 -> 0.320610687 | D20: 0.2613636364 | E20: 0.2297297297 | F20: 0.2528735632 | G20: =SUM(B6:F6)/SUM(B17:F17) -> 0.254 | H20: =G6/G$17 -> 0.118
A21: 30代 | B21: =B9/B$17 -> 0.2166666667 | C21: =C9/C$17 -> 0.2290076336 | D21: =D9/D$17 -> 0.3068181818 | E21: 0.2027027027 | F21: 0.2873563218 | G21: =SUM(B9:F9)/SUM(B17:F17) -> 0.246 | H21: =G9/G$17 -> 0.214
A22: 40代 | B22: =B12/B$17 -> 0.2083333333 | C22: =C12/C$17 -> 0.2061068702 | D22: =D12/D$17 -> 0.1818181818 | E22: =E12/E$17 -> 0.2432432432 | F22: =F12/F$17 -> 0.2183908046 | G22: =SUM(B12:F12)/SUM(B17:F17) -> 0.21 | H22: =G12/G$17 -> 0.27
A23: 50代 | B23: =B15/B$17 -> 0.2416666667 | C23: =C15/C$17 -> 0.1755725191 | D23: =D15/D$17 -> 0.1363636364 | E23: =E15/E$17 -> 0.2837837838 | F23: =F15/F$17 -> 0.1379310345 | G23: =SUM(B15:F15)/SUM(B17:F17) -> 0.194 | H23: =G15/G$17 -> 0.286
A24: 60～65歳 | B24: =B16/B$17 -> 0.1416666667 | C24: =C16/C$17 -> 0.06870229008 | D24: 0.1136363636 | E24: 0.04054054054 | F24: 0.1034482759 | G24: =SUM(B16:F16)/SUM(B17:F17) -> 0.096 | H24: =G16/G$17 -> 0.112
B26: 5000人以上（N=87） | C26: 1000人以上5000人未満（N=74） | D26: 300人以上1000人未満（N=88） | E26: 50人以上300人未満（N=131） | F26: 50人未満（N=120） | G26: 民間企業従業員 全体（N=500） | H26: 国家公務員（N=500）
A27: 30歳未満 | B27: =F20 -> 0.2528735632 | C27: =E20 -> 0.2297297297 | D27: =D20 -> 0.2613636364 | E27: =C20 -> 0.320610687 | F27: =B20 -> 0.1916666667 | G27: =G20 -> 0.254 | H27: =H20 -> 0.118
A28: 30代 | B28: =F21 -> 0.2873563218 | C28: =E21 -> 0.2027027027 | D28: =D21 -> 0.3068181818 | E28: =C21 -> 0.2290076336 | F28: =B21 -> 0.2166666667 | G28: =G21 -> 0.246 | H28: 0.214
A29: 40代 | B29: =F22 -> 0.2183908046 | C29: =E22 -> 0.2432432432 | D29: =D22 -> 0.1818181818 | E29: 0.2061068702 | F29: 0.2083333333 | G29: 0.21 | H29: 0.27
A30: 50代 | B30: =F23 -> 0.1379310345 | C30: =E23 -> 0.2837837838 | D30: 0.1363636364 | E30: 0.1755725191 | F30: 0.2416666667 | G30: 0.194 | H30: 0.286
A31: 60～65歳 | B31: =F24 -> 0.1034482759 | C31: 0.04054054054 | D31: 0.1136363636 | E31: 0.06870229008 | F31: 0.1416666667 | G31: 0.096 | H31: 0.112

Sheet 【図2-3】
A1: 図２－３
A2: 勤務地
B3: 1. 50人未満 | C3: 2. 50人以上300人未満 | D3: 3. 300人以上1,000人未満 | E3: 4. 1,000人以上5,000人未満 | F3: 5. 5,000人以上 | G3: 6. 公務
A4: 1. 北海道・東北 | B4: 18 | C4: 11 | D4: 10 | E4: 5 | F4: 9 | G4: 65
A5: 2. 関東（東京都除く） | B5: 17 | C5: 28 | D5: 16 | E5: 17 | F5: 18 | G5: 93
A6: 3. 東京都 | B6: 16 | C6: 17 | D6: 13 | E6: 23 | F6: 18 | G6: 122
A7: 4. 中部 | B7: 17 | C7: 31 | D7: 11 | E7: 9 | F7: 19 | G7: 83
A8: 5. 近畿 | B8: 19 | C8: 16 | D8: 21 | E8: 10 | F8: 14 | G8: 61
A9: 6. 中国・四国 | B9: 15 | C9: 10 | D9: 6 | E9: 6 | F9: 4 | G9: 37
A10: 7. 九州・沖縄 | B10: 18 | C10: 18 | D10: 11 | E10: 4 | F10: 5 | G10: 39
A11: 総計 | B11: 120 | C11: 131 | D11: 88 | E11: 74 | F11: 87 | G11: 500
B13: 5000人以上（N=87） | C13: 1000人以上5000人未満（N=74） | D13: 300人以上1000人未満（N=88） | E13: 50人以上300人未満（N=131） | F13: 50人未満（N=120） | G13: 民間企業従業員 全体（N=500） | H13: 国家公務員（N=500）
A14: 北海道・東北 | B14: =F4/F$11 -> 0.1034482759 | C14: =E4/E$11 -> 0.06756756757 | D14: =D4/D$11 -> 0.1136363636 | E14: =C4/C$11 -> 0.08396946565 | F14: =B4/B$11 -> 0.15 | G14: =SUM(B4:F4)/500 -> 0.106 | H14: =G4/G$11 -> 0.13
A15: 関東（東京都除く） | B15: =F5/F$11 -> 0.2068965517 | C15: =E5/E$11 -> 0.2297297297 | D15: =D5/D$11 -> 0.1818181818 | E15: =C5/C$11 -> 0.213740458 | F15: =B5/B$11 -> 0.1416666667 | G15: =SUM(B5:F5)/500 -> 0.192 | H15: =G5/G$11 -> 0.186
A16: 東京都 | B16: =F6/F$11 -> 0.2068965517 | C16: =E6/E$11 -> 0.3108108108 | D16: 0.1477272727 | E16: 0.1297709924 | F16: 0.1333333333 | G16: 0.174 | H16: 0.244
A17: 中部 | B17: =F7/F$11 -> 0.2183908046 | C17: 0.1216216216 | D17: 0.125 | E17: 0.2366412214 | F17: 0.1416666667 | G17: 0.174 | H17: 0.166
A18: 近畿 | B18: =F8/F$11 -> 0.1609195402 | C18: 0.1351351351 | D18: 0.2386363636 | E18: 0.1221374046 | F18: 0.1583333333 | G18: 0.16 | H18: 0.122
A19: 中国・四国 | B19: =F9/F$11 -> 0.04597701149 | C19: 0.08108108108 | D19: 0.06818181818 | E19: 0.07633587786 | F19: 0.125 | G19: 0.082 | H19: 0.074
A20: 九州・沖縄 | B20: =F10/F$11 -> 0.05747126437 | C20: 0.05405405405 | D20: 0.125 | E20: 0.1374045802 | F20: 0.15 | G20: 0.112 | H20: 0.078

Sheet 【図2-4】
A1: 図２－４
A2: 「あなたは、いまの職場で働くことに満足している。」という質問への回答状況
B3: 1. 50人未満 | C3: 2. 50人以上300人未満 | D3: 3. 300人以上1,000人未満 | E3: 4. 1,000人以上5,000人未満 | F3: 5. 5,000人以上 | G3: 6. 公務 | H3: 総計
A4: 1. 全くその通り | B4: 12 | C4: 13 | D4: 7 | E4: 4 | F4: 10 | G4: 56 | H4: 102
A5: 2. どちらかといえばその通り | B5: 29 | C5: 40 | D5: 32 | E5: 28 | F5: 29 | G5: 162 | H5: 320
A6: 3. どちらともいえない | B6: 50 | C6: 47 | D6: 30 | E6: 24 | F6: 29 | G6: 177 | H6: 357
A7: 4. どちらかといえば違う | B7: 13 | C7: 17 | D7: 13 | E7: 12 | F7: 12 | G7: 59 | H7: 126
A8: 5. 全く違う | B8: 16 | C8: 14 | D8: 6 | E8: 6 | F8: 7 | G8: 46 | H8: 95
A9: 総計 | B9: 120 | C9: 131 | D9: 88 | E9: 74 | F9: 87 | G9: 500 | H9: 1000
B11: 1. 50人未満 | C11: 2. 50人以上300人未満 | D11: 3. 300人以上1,000人未満 | E11: 4. 1,000人以上5,000人未満 | F11: 5. 5,000人以上 | G11: 民間全体 | H11: 6. 公務
A12: 1. 全くその通り | B12: =B4/B$9 -> 0.1 | C12: 0.09923664122 | D12: 0.07954545455 | E12: 0.05405405405 | F12: 0.1149425287 | G12: =SUM(B4:F4)/500 -> 0.092 | H12: =G4/G$9 -> 0.112
A13: 2. どちらかといえばその通り | B13: 0.2416666667 | C13: 0.3053435115 | D13: 0.3636363636 | E13: 0.3783783784 | F13: 0.3333333333 | G13: =SUM(B5:F5)/500 -> 0.316 | H13: =G5/G$9 -> 0.324
A14: 3. どちらともいえない | B14: 0.4166666667 | C14: 0.358778626 | D14: 0.3409090909 | E14: 0.3243243243 | F14: 0.3333333333 | G14: =SUM(B6:F6)/500 -> 0.36 | H14: =G6/G$9 -> 0.354
A15: 4. どちらかといえば違う | B15: 0.1083333333 | C15: 0.1297709924 | D15: 0.1477272727 | E15: 0.1621621622 | F15: 0.1379310345 | G15: =SUM(B7:F7)/500 -> 0.134 | H15: =G7/G$9 -> 0.118
A16: 5. 全く違う | B16: 0.1333333333 | C16: 0.106870229 | D16: 0.06818181818 | E16: 0.08108108108 | F16: 0.08045977011 | G16: =SUM(B8:F8)/500 -> 0.098 | H16: =G8/G$9 -> 0.092
B18: 5000人以上（N=87） | C18: 1000人以上5000人未満（N=74） | D18: 300人以上1000人未満（N=88） | E18: 50人以上300人未満（N=131） | F18: 50人未満（N=120） | G18: 民間企業従業員 全体（N=500） | H18: 国家公務員（N=500）
A19: 全くその通り | B19: =F12 -> 0.1149425287 | C19: =E12 -> 0.05405405405 | D19: =D12 -> 0.07954545455 | E19: =C12 -> 0.09923664122 | F19: =B12 -> 0.1 | G19: =G12 -> 0.092 | H19: =H12 -> 0.112
A20: どちらかといえばその通り | B20: =F13 -> 0.3333333333 | C20: =E13 -> 0.3783783784 | D20: =D13 -> 0.3636363636 | E20: =C13 -> 0.3053435115 | F20: =B13 -> 0.2416666667 | G20: =G13 -> 0.316 | H20: 0.324
A21: どちらともいえない | B21: =F14 -> 0.3333333333 | C21: 0.3243243243 | D21: 0.3409090909 | E21: 0.358778626 | F21: 0.4166666667 | G21: 0.36 | H21: 0.354
A22: どちらかといえば違う | B22: 0.1379310345 | C22: 0.1621621622 | D22: 0.1477272727 | E22: 0.1297709924 | F22: 0.1083333333 | G22: 0.134 | H22: 0.118
A23: 全く違う | B23: 0.08045977011 | C23: 0.08108108108 | D23: 0.06818181818 | E23: 0.106870229 | F23: 0.1333333333 | G23: 0.098 | H23: 0.092

Sheet 【図2-5-1】
A1: 図２－５－１
A2: 「あなたは、現在の職場を親しい友人や知人に勧めたい」という質問への回答状況
B3: 1. 50人未満 | C3: 2. 50人以上300人未満 | D3: 3. 300人以上1,000人未満 | E3: 4. 1,000人以上5,000人未満 | F3: 5. 5,000人以上 | G3: 6. 公務 | H3: 総計
A4: 1. 全くその通り | B4: 4 | C4: 6 | D4: 5 | E4: 3 | F4: 4 | G4: 30 | H4: 52
A5: 2. どちらかといえばその通り | B5: 16 | C5: 26 | D5: 31 | E5: 24 | F5: 31 | G5: 99 | H5: 227
A6: 3. どちらともいえない | B6: 54 | C6: 56 | D6: 22 | E6: 26 | F6: 30 | G6: 220 | H6: 408
A7: 4. どちらかといえば違う | B7: 23 | C7: 19 | D7: 18 | E7: 11 | F7: 12 | G7: 81 | H7: 164
A8: 5. 全く違う | B8: 23 | C8: 24 | D8: 12 | E8: 10 | F8: 10 | G8: 70 | H8: 149
A9: 総計 | B9: 120 | C9: 131 | D9: 88 | E9: 74 | F9: 87 | G9: 500 | H9: 1000
B11: 1. 50人未満 | C11: 2. 50人以上300人未満 | D11: 3. 300人以上1,000人未満 | E11: 4. 1,000人以上5,000人未満 | F11: 5. 5,000人以上 | G11: 民間全体 | H11: 6. 公務
A12: 1. 全くその通り | B12: =B4/B$9 -> 0.03333333333 | C12: =C4/C$9 -> 0.04580152672 | D12: 0.05681818182 | E12: 0.04054054054 | F12: 0.04597701149 | G12: =SUM(B4:F4)/500 -> 0.044 | H12: =G4/G$9 -> 0.06
A13: 2. どちらかといえばその通り | B13: =B5/B$9 -> 0.1333333333 | C13: 0.1984732824 | D13: 0.3522727273 | E13: 0.3243243243 | F13: 0.3563218391 | G13: =SUM(B5:F5)/500 -> 0.256 | H13: =G5/G$9 -> 0.198
A14: 3. どちらともいえない | B14: 0.45 | C14: 0.427480916 | D14: 0.25 | E14: 0.3513513514 | F14: 0.3448275862 | G14: 0.376 | H14: 0.44
A15: 4. どちらかといえば違う | B15: 0.1916666667 | C15: 0.1450381679 | D15: 0.2045454545 | E15: 0.1486486486 | F15: 0.1379310345 | G15: 0.166 | H15: 0.162
A16: 5. 全く違う | B16: 0.1916666667 | C16: 0.1832061069 | D16: 0.1363636364 | E16: 0.1351351351 | F16: 0.1149425287 | G16: 0.158 | H16: 0.14
B18: 5000人以上（N=87） | C18: 1000人以上5000人未満（N=74） | D18: 300人以上1000人未満（N=88） | E18: 50人以上300人未満（N=131） | F18: 50人未満（N=120） | G18: 民間企業従業員 全体（N=500） | H18: 国家公務員（N=500）
A19: 全くその通り | B19: =F12 -> 0.04597701149 | C19: =E12 -> 0.04054054054 | D19: =D12 -> 0.05681818182 | E19: =C12 -> 0.04580152672 | F19: =B12 -> 0.03333333333 | G19: =G12 -> 0.044 | H19: =H12 -> 0.06
A20: どちらかといえばその通り | B20: =F13 -> 0.3563218391 | C20: =E13 -> 0.3243243243 | D20: =D13 -> 0.3522727273 | E20: =C13 -> 0.1984732824 | F20: =B13 -> 0.1333333333 | G20: =G13 -> 0.256 | H20: 0.198
A21: どちらともいえない | B21: 0.3448275862 | C21: 0.3513513514 | D21: 0.25 | E21: 0.427480916 | F21: 0.45 | G21: 0.376 | H21: 0.44
A22: どちらかといえば違う | B22: 0.1379310345 | C22: 0.1486486486 | D22: 0.2045454545 | E22: 0.1450381679 | F22: 0.1916666667 | G22: 0.166 | H22: 0.162
A23: 全く違う | B23: 0.1149425287 | C23: 0.1351351351 | D23: 0.1363636364 | E23: 0.1832061069 | F23: 0.1916666667 | G23: 0.158 | H23: 0.14

Sheet 【図2-5-2】
A1: 図２－５－２
A2: 「あなたは、現在の職場を親しい友人や知人に勧めたい」という質問への回答状況（年齢層別）
B3: 1. 24歳以下 | C3: 2. 25～29歳 | D3: 3. 30～34歳 | E3: 4. 35～39歳 | F3: 5. 40～44歳 | G3: 6. 45～49歳 | H3: 7. 50～54歳 | I3: 8. 55～59歳 | J3: 9. 60～65歳
A4: 国家公務員 | B4: 18 | C4: 41 | D4: 48 | E4: 59 | F4: 60 | G4: 75 | H4: 80 | I4: 63 | J4: 56
A5: 1. 全くその通り | B5: 5 | C5: 1 | D5: 3 | E5: 4 | F5: 4 | G5: 5 | H5: 4 | I5: 2 | J5: 2
A6: 2. どちらかといえばその通り | B6: 4 | C6: 12 | D6: 9 | E6: 11 | F6: 7 | G6: 12 | H6: 19 | I6: 9 | J6: 16
A7: 3. どちらともいえない | B7: 5 | C7: 18 | D7: 19 | E7: 25 | F7: 22 | G7: 36 | H7: 36 | I7: 35 | J7: 24
A8: 4. どちらかといえば違う | B8: 3 | C8: 7 | D8: 5 | E8: 9 | F8: 16 | G8: 13 | H8: 12 | I8: 7 | J8: 9
A9: 5. 全く違う | B9: 1 | C9: 3 | D9: 12 | E9: 10 | F9: 11 | G9: 9 | H9: 9 | I9: 10 | J9: 5
A10: 民間 | B10: 74 | C10: 53 | D10: 59 | E10: 64 | F10: 46 | G10: 59 | H10: 50 | I10: 47 | J10: 48
A11: 1. 全くその通り | B11: 7 | C11: 2 | D11: 2 | E11: 4 | F11: 2 | G11: 2 | H11: 1 | I11: 1 | J11: 1
A12: 2. どちらかといえばその通り | B12: 24 | C12: 19 | D12: 14 | E12: 17 | F12: 12 | G12: 16 | H12: 10 | I12: 6 | J12: 10
A13: 3. どちらともいえない | B13: 24 | C13: 20 | D13: 28 | E13: 17 | F13: 18 | G13: 19 | H13: 17 | I13: 23 | J13: 22
A14: 4. どちらかといえば違う | B14: 8 | C14: 7 | D14: 10 | E14: 13 | F14: 4 | G14: 12 | H14: 10 | I14: 10 | J14: 9
A15: 5. 全く違う | B15: 11 | C15: 5 | D15: 5 | E15: 13 | F15: 10 | G15: 10 | H15: 12 | I15: 7 | J15: 6
B17: 60～65歳（N=48） | C17: 50代（N=97） | D17: 40代（N=105） | E17: 30代（N=123） | F17: 民間企業従業員 30歳未満（N=127） | G17: 60～65歳（N=56） | H17: 50代（N=143） | I17: 40代（N=135） | J17: 30代（N=107） | K17: 国家公務員 30歳未満（N=59）
A18: 全くその通り | B18: =J11/$J$10 -> 0.02083333333 | C18: =(H11+I11)/$C$23 -> 0.0206185567 | D18: =(F11+G11)/$D$23 -> 0.0380952381 | E18: =(D11+E11)/$E$23 -> 0.0487804878 | F18: =(B11+C11)/$F$23 -> 0.07086614173 | G18: =J5/$G$23 -> 0.03571428571 | H18: =(H5+I5)/$H$23 -> 0.04195804196 | I18: =(F5+G5)/$I$23 -> 0.06666666667 | J18: =(D5+E5)/$J$23 -> 0.06542056075 | K18: =(B5+C5)/$K$23 -> 0.1016949153
A19: どちらかといえばその通り | B19: =J12/$B$23 -> 0.2083333333 | C19: =(H12+I12)/$C$23 -> 0.1649484536 | D19: =(F12+G12)/$D$23 -> 0.2666666667 | E19: =(D12+E12)/$E$23 -> 0.2520325203 | F19: =(B12+C12)/$F$23 -> 0.3385826772 | G19: =J6/$G$23 -> 0.2857142857 | H19: =(H6+I6)/$H$23 -> 0.1958041958 | I19: =(F6+G6)/$I$23 -> 0.1407407407 | J19: =(D6+E6)/$J$23 -> 0.1869158879 | K19: =(B6+C6)/$K$23 -> 0.2711864407
A20: どちらともいえない | B20: =J13/$B$23 -> 0.4583333333 | C20: =(H13+I13)/$C$23 -> 0.412371134 | D20: =(F13+G13)/$D$23 -> 0.3523809524 | E20: =(D13+E13)/$E$23 -> 0.3658536585 | F20: =(B13+C13)/$F$23 -> 0.3464566929 | G20: =J7/$G$23 -> 0.4285714286 | H20: =(H7+I7)/$H$23 -> 0.4965034965 | I20: =(F7+G7)/$I$23 -> 0.4296296296 | J20: =(D7+E7)/$J$23 -> 0.4112149533 | K20: =(B7+C7)/$K$23 -> 0.3898305085
A21: どちらかといえば違う | B21: =J14/$B$23 -> 0.1875 | C21: =(H14+I14)/$C$23 -> 0.206185567 | D21: =(F14+G14)/$D$23 -> 0.1523809524 | E21: =(D14+E14)/$E$23 -> 0.1869918699 | F21: =(B14+C14)/$F$23 -> 0.1181102362 | G21: =J8/$G$23 -> 0.1607142857 | H21: =(H8+I8)/$H$23 -> 0.1328671329 | I21: =(F8+G8)/$I$23 -> 0.2148148148 | J21: =(D8+E8)/$J$23 -> 0.1308411215 | K21: =(B8+C8)/$K$23 -> 0.1694915254
A22: 全く違う | B22: =J15/$B$23 -> 0.125 | C22: =(H15+I15)/$C$23 -> 0.1958762887 | D22: =(F15+G15)/$D$23 -> 0.1904761905 | E22: =(D15+E15)/$E$23 -> 0.1463414634 | F22: =(B15+C15)/$F$23 -> 0.125984252 | G22: =J9/$G$23 -> 0.08928571429 | H22: =(H9+I9)/$H$23 -> 0.1328671329 | I22: =(F9+G9)/$I$23 -> 0.1481481481 | J22: =(D9+E9)/$J$23 -> 0.2056074766 | K22: =(B9+C9)/$K$23 -> 0.06779661017
B23: =J10 -> 48 | C23: =H10+I10 -> 97 | D23: =F10+G10 -> 105 | E23: =D10+E10 -> 123 | F23: =B10+C10 -> 127 | G23: =J4 -> 56 | H23: =H4+I4 -> 143 | I23: =F4+G4 -> 135 | J23: =D4+E4 -> 107 | K23: =B4+C4 -> 59

Sheet 【図2-6】
A1: 図２－６
A2: 「あなたの職場では、業務効率化の取組みが積極的に行われている。」という質問への回答状況
B3: 1. 50人未満 | C3: 2. 50人以上300人未満 | D3: 3. 300人以上1,000人未満 | E3: 4. 1,000人以上5,000人未満 | F3: 5. 5,000人以上 | G3: 6. 公務 | H3: 総計
A4: 1. 全くその通り | B4: 4 | C4: 7 | D4: 8 | E4: 4 | F4: 10 | G4: 32 | H4: 65
A5: 2. どちらかといえばその通り | B5: 27 | C5: 37 | D5: 35 | E5: 26 | F5: 28 | G5: 132 | H5: 285
A6: 3. どちらともいえない | B6: 57 | C6: 52 | D6: 29 | E6: 29 | F6: 35 | G6: 204 | H6: 406
A7: 4. どちらかといえば違う | B7: 21 | C7: 23 | D7: 13 | E7: 7 | F7: 10 | G7: 80 | H7: 154
A8: 5. 全く違う | B8: 11 | C8: 12 | D8: 3 | E8: 8 | F8: 4 | G8: 52 | H8: 90
A9: 総計 | B9: 120 | C9: 131 | D9: 88 | E9: 74 | F9: 87 | G9: 500 | H9: 1000
B11: 1. 50人未満 | C11: 2. 50人以上300人未満 | D11: 3. 300人以上1,000人未満 | E11: 4. 1,000人以上5,000人未満 | F11: 5. 5,000人以上 | G11: 民間全体 | H11: 6. 公務
A12: 1. 全くその通り | B12: =B4/B$9 -> 0.03333333333 | C12: =C4/C$9 -> 0.0534351145 | D12: 0.09090909091 | E12: 0.05405405405 | F12: 0.1149425287 | G12: =SUM(B4:F4)/500 -> 0.066 | H12: =G4/G$9 -> 0.064
A13: 2. どちらかといえばその通り | B13: =B5/B$9 -> 0.225 | C13: =C5/C$9 -> 0.2824427481 | D13: 0.3977272727 | E13: 0.3513513514 | F13: 0.3218390805 | G13: =SUM(B5:F5)/500 -> 0.306 | H13: =G5/G$9 -> 0.264
A14: 3. どちらともいえない | B14: =B6/B$9 -> 0.475 | C14: 0.3969465649 | D14: 0.3295454545 | E14: 0.3918918919 | F14: 0.4022988506 | G14: =SUM(B6:F6)/500 -> 0.404 | H14: =G6/G$9 -> 0.408
A15: 4. どちらかといえば違う | B15: =B7/B$9 -> 0.175 | C15: 0.1755725191 | D15: 0.1477272727 | E15: 0.09459459459 | F15: 0.1149425287 | G15: =SUM(B7:F7)/500 -> 0.148 | H15: =G7/G$9 -> 0.16
A16: 5. 全く違う | B16: =B8/B$9 -> 0.09166666667 | C16: 0.09160305344 | D16: 0.03409090909 | E16: 0.1081081081 | F16: 0.04597701149 | G16: =SUM(B8:F8)/500 -> 0.076 | H16: =G8/G$9 -> 0.104
B18: 5000人以上（N=87） | C18: 1000人以上5000人未満（N=74） | D18: 300人以上1000人未満（N=88） | E18: 50人以上300人未満（N=131） | F18: 50人未満（N=120） | G18: 民間企業従業員 全体（N=500） | H18: 国家公務員（N=500）
A19: 全くその通り | B19: =F12 -> 0.1149425287 | C19: =E12 -> 0.05405405405 | D19: =D12 -> 0.09090909091 | E19: =C12 -> 0.0534351145 | F19: =B12 -> 0.03333333333 | G19: =G12 -> 0.066 | H19: =H12 -> 0.064
A20: どちらかといえばその通り | B20: =F13 -> 0.3218390805 | C20: =E13 -> 0.3513513514 | D20: =D13 -> 0.3977272727 | E20: =C13 -> 0.2824427481 | F20: =B13 -> 0.225 | G20: =G13 -> 0.306 | H20: =H13 -> 0.264
A21: どちらともいえない | B21: =F14 -> 0.4022988506 | C21: =E14 -> 0.3918918919 | D21: =D14 -> 0.3295454545 | E21: =C14 -> 0.3969465649 | F21: =B14 -> 0.475 | G21: =G14 -> 0.404 | H21: 0.408
A22: どちらかといえば違う | B22: 0.1149425287 | C22: 0.09459459459 | D22: 0.1477272727 | E22: 0.1755725191 | F22: 0.175 | G22: 0.148 | H22: 0.16
A23: 全く違う | B23: 0.04597701149 | C23: 0.1081081081 | D23: 0.03409090909 | E23: 0.09160305344 | F23: 0.09166666667 | G23: 0.076 | H23: 0.104

Sheet 【図2-7-1】
A1: 図２－７－１
A2: 「あなたの職場では、適切な人員配置が行われている。」という質問への回答状況
B3: 1. 50人未満 | C3: 2. 50人以上300人未満 | D3: 3. 300人以上1,000人未満 | E3: 4. 1,000人以上5,000人未満 | F3: 5. 5,000人以上 | G3: 6. 公務 | H3: 総計
A4: 1. 全くその通り | B4: 6 | C4: 8 | D4: 5 | E4: 5 | F4: 6 | G4: 25 | H4: 55
A5: 2. どちらかといえばその通り | B5: 32 | C5: 34 | D5: 24 | E5: 24 | F5: 25 | G5: 99 | H5: 238
A6: 3. どちらともいえない | B6: 52 | C6: 56 | D6: 36 | E6: 25 | F6: 39 | G6: 188 | H6: 396
A7: 4. どちらかといえば違う | B7: 16 | C7: 22 | D7: 16 | E7: 12 | F7: 9 | G7: 119 | H7: 194
A8: 5. 全く違う | B8: 14 | C8: 11 | D8: 7 | E8: 8 | F8: 8 | G8: 69 | H8: 117
A9: 総計 | B9: 120 | C9: 131 | D9: 88 | E9: 74 | F9: 87 | G9: 500 | H9: 1000
B11: 1. 50人未満 | C11: 2. 50人以上300人未満 | D11: 3. 300人以上1,000人未満 | E11: 4. 1,000人以上5,000人未満 | F11: 5. 5,000人以上 | G11: 民間全体 | H11: 6. 公務
A12: 1. 全くその通り | B12: =B4/B$9 -> 0.05 | C12: =C4/C$9 -> 0.06106870229 | D12: 0.05681818182 | E12: 0.06756756757 | F12: 0.06896551724 | G12: =SUM(B4:F4)/500 -> 0.06 | H12: =G4/G$9 -> 0.05
A13: 2. どちらかといえばその通り | B13: =B5/B$9 -> 0.2666666667 | C13: 0.2595419847 | D13: 0.2727272727 | E13: 0.3243243243 | F13: 0.2873563218 | G13: =SUM(B5:F5)/500 -> 0.278 | H13: =G5/G$9 -> 0.198
A14: 3. どちらともいえない | B14: 0.4333333333 | C14: 0.427480916 | D14: 0.4090909091 | E14: 0.3378378378 | F14: 0.4482758621 | G14: 0.416 | H14: 0.376
A15: 4. どちらかといえば違う | B15: 0.1333333333 | C15: 0.1679389313 | D15: 0.1818181818 | E15: 0.1621621622 | F15: 0.1034482759 | G15: 0.15 | H15: 0.238
A16: 5. 全く違う | B16: 0.1166666667 | C16: 0.08396946565 | D16: 0.07954545455 | E16: 0.1081081081 | F16: 0.09195402299 | G16: 0.096 | H16: 0.138
B18: 5000人以上（N=87） | C18: 1000人以上5000人未満（N=74） | D18: 300人以上1000人未満（N=88） | E18: 50人以上300人未満（N=131） | F18: 50人未満（N=120） | G18: 民間企業従業員 全体（N=500） | H18: 国家公務員（N=500）
A19: 全くその通り | B19: =F12 -> 0.06896551724 | C19: =E12 -> 0.06756756757 | D19: =D12 -> 0.05681818182 | E19: =C12 -> 0.06106870229 | F19: =B12 -> 0.05 | G19: =G12 -> 0.06 | H19: =H12 -> 0.05
A20: どちらかといえばその通り | B20: =F13 -> 0.2873563218 | C20: =E13 -> 0.3243243243 | D20: =D13 -> 0.2727272727 | E20: =C13 -> 0.2595419847 | F20: =B13 -> 0.2666666667 | G20: =G13 -> 0.278 | H20: 0.198
A21: どちらともいえない | B21: 0.4482758621 | C21: 0.3378378378 | D21: 0.4090909091 | E21: 0.427480916 | F21: 0.4333333333 | G21: 0.416 | H21: 0.376
A22: どちらかといえば違う | B22: 0.1034482759 | C22: 0.1621621622 | D22: 0.1818181818 | E22: 0.1679389313 | F22: 0.1333333333 | G22: 0.15 | H22: 0.238
A23: 全く違う | B23: 0.09195402299 | C23: 0.1081081081 | D23: 0.07954545455 | E23: 0.08396946565 | F23: 0.1166666667 | G23: 0.096 | H23: 0.138

Sheet 【図2-7-2】
A1: 図２－７－２
A2: 「あなたの職場では、適切な人員配置が行われている。」という質問への回答状況（年齢層別）
B3: 1. 24歳以下 | C3: 2. 25～29歳 | D3: 3. 30～34歳 | E3: 4. 35～39歳 | F3: 5. 40～44歳 | G3: 6. 45～49歳 | H3: 7. 50～54歳 | I3: 8. 55～59歳 | J3: 9. 60～65歳 | K3: 総計
A4: 国家公務員 | B4: 18 | C4: 41 | D4: 48 | E4: 59 | F4: 60 | G4: 75 | H4: 80 | I4: 63 | J4: 56 | K4: 500
A5: 1. 全くその通り | B5: 4 | D5: 3 | E5: 7 | F5: 3 | G5: 2 | H5: 2 | I5: 3 | J5: 1 | K5: 25
A6: 2. どちらかといえばその通り | B6: 4 | C6: 10 | D6: 11 | E6: 12 | F6: 9 | G6: 11 | H6: 22 | I6: 9 | J6: 11 | K6: 99
A7: 3. どちらともいえない | B7: 6 | C7: 14 | D7: 13 | E7: 14 | F7: 24 | G7: 34 | H7: 28 | I7: 31 | J7: 24 | K7: 188
A8: 4. どちらかといえば違う | B8: 2 | C8: 10 | D8: 11 | E8: 18 | F8: 17 | G8: 17 | H8: 21 | I8: 11 | J8: 12 | K8: 119
A9: 5. 全く違う | B9: 2 | C9: 7 | D9: 10 | E9: 8 | F9: 7 | G9: 11 | H9: 7 | I9: 9 | J9: 8 | K9: 69
A10: 民間 | B10: 74 | C10: 53 | D10: 59 | E10: 64 | F10: 46 | G10: 59 | H10: 50 | I10: 47 | J10: 48 | K10: 500
A11: 1. 全くその通り | B11: 10 | C11: 3 | D11: 4 | E11: 4 | F11: 1 | G11: 4 | H11: 2 | I11: 2 | K11: 30
A12: 2. どちらかといえばその通り | B12: 22 | C12: 14 | D12: 14 | E12: 19 | F12: 14 | G12: 17 | H12: 8 | I12: 15 | J12: 16 | K12: 139
A13: 3. どちらともいえない | B13: 26 | C13: 28 | D13: 30 | E13: 21 | F13: 23 | G13: 24 | H13: 20 | I13: 16 | J13: 20 | K13: 208
A14: 4. どちらかといえば違う | B14: 12 | C14: 5 | D14: 7 | E14: 13 | F14: 4 | G14: 8 | H14: 10 | I14: 8 | J14: 8 | K14: 75
A15: 5. 全く違う | B15: 4 | C15: 3 | D15: 4 | E15: 7 | F15: 4 | G15: 6 | H15: 10 | I15: 6 | J15: 4 | K15: 48
B17: 60～65歳（N=48） | C17: 50代（N=97） | D17: 40代（N=105） | E17: 30代（N=123） | F17: 民間企業従業員 30歳未満（N=127） | G17: 60～65歳（N=56） | H17: 50代（N=143） | I17: 40代（N=135） | J17: 30代（N=107） | K17: 国家公務員 30歳未満（N=59）
A18: 全くその通り | B18: =J11/$B$23 -> 0 | C18: =(H11+I11)/$C$23 -> 0.0412371134 | D18: =(F11+G11)/$D$23 -> 0.04761904762 | E18: =(D11+E11)/$E$23 -> 0.06504065041 | F18: =(B11+C11)/$F$23 -> 0.1023622047 | G18: =J5/$G$23 -> 0.01785714286 | H18: =(H5+I5)/$H$23 -> 0.03496503497 | I18: =(F5+G5)/$I$23 -> 0.03703703704 | J18: =(D5+E5)/$J$23 -> 0.09345794393 | K18: =(B5+C5)/$K$23 -> 0.06779661017
A19: どちらかといえばその通り | B19: =J12/$B$23 -> 0.3333333333 | C19: =(H12+I12)/$C$23 -> 0.2371134021 | D19: =(F12+G12)/$D$23 -> 0.2952380952 | E19: =(D12+E12)/$E$23 -> 0.2682926829 | F19: =(B12+C12)/$F$23 -> 0.2834645669 | G19: =J6/$G$23 -> 0.1964285714 | H19: =(H6+I6)/$H$23 -> 0.2167832168 | I19: =(F6+G6)/$I$23 -> 0.1481481481 | J19: =(D6+E6)/$J$23 -> 0.214953271 | K19: =(B6+C6)/$K$23 -> 0.2372881356
A20: どちらともいえない | B20: =J13/$B$23 -> 0.4166666667 | C20: =(H13+I13)/$C$23 -> 0.3711340206 | D20: =(F13+G13)/$D$23 -> 0.4476190476 | E20: =(D13+E13)/$E$23 -> 0.4146341463 | F20: =(B13+C13)/$F$23 -> 0.4251968504 | G20: =J7/$G$23 -> 0.4285714286 | H20: =(H7+I7)/$H$23 -> 0.4125874126 | I20: =(F7+G7)/$I$23 -> 0.4296296296 | J20: =(D7+E7)/$J$23 -> 0.2523364486 | K20: =(B7+C7)/$K$23 -> 0.3389830508
A21: どちらかといえば違う | B21: =J14/$B$23 -> 0.1666666667 | C21: =(H14+I14)/$C$23 -> 0.1855670103 | D21: =(F14+G14)/$D$23 -> 0.1142857143 | E21: =(D14+E14)/$E$23 -> 0.162601626 | F21: =(B14+C14)/$F$23 -> 0.1338582677 | G21: =J8/$G$23 -> 0.2142857143 | H21: =(H8+I8)/$H$23 -> 0.2237762238 | I21: =(F8+G8)/$I$23 -> 0.2518518519 | J21: =(D8+E8)/$J$23 -> 0.2710280374 | K21: =(B8+C8)/$K$23 -> 0.2033898305
A22: 全く違う | B22: =J15/$B$23 -> 0.08333333333 | C22: =(H15+I15)/$C$23 -> 0.1649484536 | D22: =(F15+G15)/$D$23 -> 0.09523809524 | E22: =(D15+E15)/$E$23 -> 0.08943089431 | F22: =(B15+C15)/$F$23 -> 0.05511811024 | G22: =J9/$G$23 -> 0.1428571429 | H22: =(H9+I9)/$H$23 -> 0.1118881119 | I22: =(F9+G9)/$I$23 -> 0.1333333333 | J22: =(D9+E9)/$J$23 -> 0.1682242991 | K22: =(B9+C9)/$K$23 -> 0.1525423729
B23: =J10 -> 48 | C23: =H10+I10 -> 97 | D23: =F10+G10 -> 105 | E23: =D10+E10 -> 123 | F23: =B10+C10 -> 127 | G23: =J4 -> 56 | H23: =H4+I4 -> 143 | I23: =F4+G4 -> 135 | J23: =D4+E4 -> 107 | K23: =B4+C4 -> 59

Sheet 【図2-8】
A1: 図２－８
A2: 「あなたは、これまでの自分自身の人事異動に納得している。」という質問への回答状況
B3: 1. 50人未満 | C3: 2. 50人以上300人未満 | D3: 3. 300人以上1,000人未満 | E3: 4. 1,000人以上5,000人未満 | F3: 5. 5,000人以上 | G3: 6. 公務 | H3: 総計
A4: 1. 全くその通り | B4: 7 | C4: 11 | D4: 7 | E4: 2 | F4: 4 | G4: 42 | H4: 73
A5: 2. どちらかといえばその通り | B5: 39 | C5: 35 | D5: 30 | E5: 23 | F5: 39 | G5: 146 | H5: 312
A6: 3. どちらともいえない | B6: 48 | C6: 64 | D6: 31 | E6: 33 | F6: 28 | G6: 190 | H6: 394
A7: 4. どちらかといえば違う | B7: 13 | C7: 12 | D7: 14 | E7: 9 | F7: 9 | G7: 73 | H7: 130
A8: 5. 全く違う | B8: 13 | C8: 9 | D8: 6 | E8: 7 | F8: 7 | G8: 49 | H8: 91
A9: 総計 | B9: 120 | C9: 131 | D9: 88 | E9: 74 | F9: 87 | G9: 500 | H9: 1000
B11: 1. 50人未満 | C11: 2. 50人以上300人未満 | D11: 3. 300人以上1,000人未満 | E11: 4. 1,000人以上5,000人未満 | F11: 5. 5,000人以上 | G11: 民間全体 | H11: 6. 公務
A12: 1. 全くその通り | B12: =B4/B$9 -> 0.05833333333 | C12: =C4/C$9 -> 0.08396946565 | D12: 0.07954545455 | E12: 0.02702702703 | F12: 0.04597701149 | G12: =SUM(B4:F4)/500 -> 0.062 | H12: =G4/G$9 -> 0.084
A13: 2. どちらかといえばその通り | B13: =B5/B$9 -> 0.325 | C13: 0.2671755725 | D13: 0.3409090909 | E13: 0.3108108108 | F13: 0.4482758621 | G13: =SUM(B5:F5)/500 -> 0.332 | H13: =G5/G$9 -> 0.292
A14: 3. どちらともいえない | B14: 0.4 | C14: 0.4885496183 | D14: 0.3522727273 | E14: 0.4459459459 | F14: 0.3218390805 | G14: 0.408 | H14: 0.38
A15: 4. どちらかといえば違う | B15: 0.1083333333 | C15: 0.09160305344 | D15: 0.1590909091 | E15: 0.1216216216 | F15: 0.1034482759 | G15: 0.114 | H15: 0.146
A16: 5. 全く違う | B16: 0.1083333333 | C16: 0.06870229008 | D16: 0.06818181818 | E16: 0.09459459459 | F16: 0.08045977011 | G16: 0.084 | H16: 0.098
B18: 5000人以上（N=87） | C18: 1000人以上5000人未満（N=74） | D18: 300人以上1000人未満（N=88） | E18: 50人以上300人未満（N=131） | F18: 50人未満（N=120） | G18: 民間企業従業員 全体（N=500） | H18: 国家公務員（N=500）
A19: 全くその通り | B19: =F12 -> 0.04597701149 | C19: =E12 -> 0.02702702703 | D19: =D12 -> 0.07954545455 | E19: =C12 -> 0.08396946565 | F19: =B12 -> 0.05833333333 | G19: =G12 -> 0.062 | H19: =H12 -> 0.084
A20: どちらかといえばその通り | B20: =F13 -> 0.4482758621 | C20: =E13 -> 0.3108108108 | D20: =D13 -> 0.3409090909 | E20: =C13 -> 0.2671755725 | F20: =B13 -> 0.325 | G20: =G13 -> 0.332 | H20: 0.292
A21: どちらともいえない | B21: 0.3218390805 | C21: 0.4459459459 | D21: 0.3522727273 | E21: 0.4885496183 | F21: 0.4 | G21: 0.408 | H21: 0.38
A22: どちらかといえば違う | B22: 0.1034482759 | C22: 0.1216216216 | D22: 0.1590909091 | E22: 0.09160305344 | F22: 0.1083333333 | G22: 0.114 | H22: 0.146
A23: 全く違う | B23: 0.08045977011 | C23: 0.09459459459 | D23: 0.06818181818 | E23: 0.06870229008 | F23: 0.1083333333 | G23: 0.084 | H23: 0.098

Sheet 【図2-9】
A1: 図２－９
A2: 「あなたは、これまでの自分自身の人事評価に納得している。」という質問への回答状況
B3: 1. 50人未満 | C3: 2. 50人以上300人未満 | D3: 3. 300人以上1,000人未満 | E3: 4. 1,000人以上5,000人未満 | F3: 5. 5,000人以上 | G3: 6. 公務 | H3: 総計
A4: 1. 全くその通り | B4: 4 | C4: 10 | D4: 5 | E4: 3 | F4: 6 | G4: 46 | H4: 74
A5: 2. どちらかといえばその通り | B5: 28 | C5: 36 | D5: 27 | E5: 25 | F5: 38 | G5: 139 | H5: 293
A6: 3. どちらともいえない | B6: 58 | C6: 52 | D6: 38 | E6: 30 | F6: 29 | G6: 210 | H6: 417
A7: 4. どちらかといえば違う | B7: 16 | C7: 25 | D7: 14 | E7: 7 | F7: 9 | G7: 66 | H7: 137
A8: 5. 全く違う | B8: 14 | C8: 8 | D8: 4 | E8: 9 | F8: 5 | G8: 39 | H8: 79
A9: 総計 | B9: 120 | C9: 131 | D9: 88 | E9: 74 | F9: 87 | G9: 500 | H9: 1000
B11: 1. 50人未満 | C11: 2. 50人以上300人未満 | D11: 3. 300人以上1,000人未満 | E11: 4. 1,000人以上5,000人未満 | F11: 5. 5,000人以上 | G11: 民間全体 | H11: 6. 公務
A12: 1. 全くその通り | B12: =B4/B$9 -> 0.03333333333 | C12: =C4/C$9 -> 0.07633587786 | D12: 0.05681818182 | E12: 0.04054054054 | F12: 0.06896551724 | G12: =SUM(B4:F4)/500 -> 0.056 | H12: =G4/G$9 -> 0.092
A13: 2. どちらかといえばその通り | B13: =B5/B$9 -> 0.2333333333 | C13: 0.2748091603 | D13: 0.3068181818 | E13: 0.3378378378 | F13: 0.4367816092 | G13: =SUM(B5:F5)/500 -> 0.308 | H13: =G5/G$9 -> 0.278
A14: 3. どちらともいえない | B14: 0.4833333333 | C14: 0.3969465649 | D14: 0.4318181818 | E14: 0.4054054054 | F14: 0.3333333333 | G14: 0.414 | H14: 0.42
A15: 4. どちらかといえば違う | B15: 0.1333333333 | C15: 0.1908396947 | D15: 0.1590909091 | E15: 0.09459459459 | F15: 0.1034482759 | G15: 0.142 | H15: 0.132
A16: 5. 全く違う | B16: 0.1166666667 | C16: 0.06106870229 | D16: 0.04545454545 | E16: 0.1216216216 | F16: 0.05747126437 | G16: 0.08 | H16: 0.078
B18: 5000人以上（N=87） | C18: 1000人以上5000人未満（N=74） | D18: 300人以上1000人未満（N=88） | E18: 50人以上300人未満（N=131） | F18: 50人未満（N=120） | G18: 民間企業従業員 全体（N=500） | H18: 国家公務員（N=500）
A19: 全くその通り | B19: =F12 -> 0.06896551724 | C19: =E12 -> 0.04054054054 | D19: =D12 -> 0.05681818182 | E19: =C12 -> 0.07633587786 | F19: =B12 -> 0.03333333333 | G19: =G12 -> 0.056 | H19: =H12 -> 0.092
A20: どちらかといえばその通り | B20: =F13 -> 0.4367816092 | C20: =E13 -> 0.3378378378 | D20: =D13 -> 0.3068181818 | E20: =C13 -> 0.2748091603 | F20: =B13 -> 0.2333333333 | G20: =G13 -> 0.308 | H20: 0.278
A21: どちらともいえない | B21: 0.3333333333 | C21: 0.4054054054 | D21: 0.4318181818 | E21: 0.3969465649 | F21: 0.4833333333 | G21: 0.414 | H21: 0.42
A22: どちらかといえば違う | B22: 0.1034482759 | C22: 0.09459459459 | D22: 0.1590909091 | E22: 0.1908396947 | F22: 0.1333333333 | G22: 0.142 | H22: 0.132
A23: 全く違う | B23: 0.05747126437 | C23: 0.1216216216 | D23: 0.04545454545 | E23: 0.06106870229 | F23: 0.1166666667 | G23: 0.08 | H23: 0.078

Sheet 【図2-10-1】
A1: 図２－１０－１
A2: 「あなたの職場では、従業員（職員）を大切にする風土がある。」という質問への回答状況
B3: 1. 50人未満 | C3: 2. 50人以上300人未満 | D3: 3. 300人以上1,000人未満 | E3: 4. 1,000人以上5,000人未満 | F3: 5. 5,000人以上 | G3: 6. 公務 | H3: 総計
A4: 1. 全くその通り | B4: 8 | C4: 9 | D4: 9 | E4: 2 | F4: 7 | G4: 37 | H4: 72
A5: 2. どちらかといえばその通り | B5: 29 | C5: 35 | D5: 25 | E5: 26 | F5: 34 | G5: 128 | H5: 277
A6: 3. どちらともいえない | B6: 47 | C6: 53 | D6: 29 | E6: 30 | F6: 37 | G6: 224 | H6: 420
A7: 4. どちらかといえば違う | B7: 19 | C7: 23 | D7: 17 | E7: 11 | F7: 5 | G7: 63 | H7: 138
A8: 5. 全く違う | B8: 17 | C8: 11 | D8: 8 | E8: 5 | F8: 4 | G8: 48 | H8: 93
A9: 総計 | B9: 120 | C9: 131 | D9: 88 | E9: 74 | F9: 87 | G9: 500 | H9: 1000
B11: 1. 50人未満 | C11: 2. 50人以上300人未満 | D11: 3. 300人以上1,000人未満 | E11: 4. 1,000人以上5,000人未満 | F11: 5. 5,000人以上 | G11: 民間全体 | H11: 6. 公務
A12: 1. 全くその通り | B12: =B4/B$9 -> 0.06666666667 | C12: 0.06870229008 | D12: 0.1022727273 | E12: 0.02702702703 | F12: 0.08045977011 | G12: =SUM(B4:F4)/500 -> 0.07 | H12: =G4/G$9 -> 0.074
A13: 2. どちらかといえばその通り | B13: 0.2416666667 | C13: 0.2671755725 | D13: 0.2840909091 | E13: 0.3513513514 | F13: 0.3908045977 | G13: =SUM(B5:F5)/500 -> 0.298 | H13: =G5/G$9 -> 0.256
A14: 3. どちらともいえない | B14: 0.3916666667 | C14: 0.4045801527 | D14: 0.3295454545 | E14: 0.4054054054 | F14: 0.4252873563 | G14: =SUM(B6:F6)/500 -> 0.392 | H14: =G6/G$9 -> 0.448
A15: 4. どちらかといえば違う | B15: 0.1583333333 | C15: 0.1755725191 | D15: 0.1931818182 | E15: 0.1486486486 | F15: 0.05747126437 | G15: =SUM(B7:F7)/500 -> 0.15 | H15: =G7/G$9 -> 0.126
A16: 5. 全く違う | B16: 0.1416666667 | C16: 0.08396946565 | D16: 0.09090909091 | E16: 0.06756756757 | F16: 0.04597701149 | G16: =SUM(B8:F8)/500 -> 0.09 | H16: =G8/G$9 -> 0.096
B18: 5000人以上（N=87） | C18: 1000人以上5000人未満（N=74） | D18: 300人以上1000人未満（N=88） | E18: 50人以上300人未満（N=131） | F18: 50人未満（N=120） | G18: 民間企業従業員 全体（N=500） | H18: 国家公務員（N=500）
A19: 全くその通り | B19: =F12 -> 0.08045977011 | C19: =E12 -> 0.02702702703 | D19: =D12 -> 0.1022727273 | E19: =C12 -> 0.06870229008 | F19: =B12 -> 0.06666666667 | G19: =G12 -> 0.07 | H19: =H12 -> 0.074
A20: どちらかといえばその通り | B20: =F13 -> 0.3908045977 | C20: =E13 -> 0.3513513514 | D20: =D13 -> 0.2840909091 | E20: =C13 -> 0.2671755725 | F20: =B13 -> 0.2416666667 | G20: =G13 -> 0.298 | H20: 0.256
A21: どちらともいえない | B21: 0.4252873563 | C21: 0.4054054054 | D21: 0.3295454545 | E21: 0.4045801527 | F21: 0.3916666667 | G21: 0.392 | H21: 0.448
A22: どちらかといえば違う | B22: 0.05747126437 | C22: 0.1486486486 | D22: 0.1931818182 | E22: 0.1755725191 | F22: 0.1583333333 | G22: 0.15 | H22: 0.126
A23: 全く違う | B23: 0.04597701149 | C23: 0.06756756757 | D23: 0.09090909091 | E23: 0.08396946565 | F23: 0.1416666667 | G23: 0.09 | H23: 0.096

Sheet 【図2-10-2】
A1: 図２－１０－２
A2: 「あなたの職場では、従業員（職員）を大切にする風土がある。」という質問への回答状況（年齢層別）
B3: 1. 24歳以下 | C3: 2. 25～29歳 | D3: 3. 30～34歳 | E3: 4. 35～39歳 | F3: 5. 40～44歳 | G3: 6. 45～49歳 | H3: 7. 50～54歳 | I3: 8. 55～59歳 | J3: 9. 60～65歳
A4: 国家公務員 | B4: 18 | C4: 41 | D4: 48 | E4: 59 | F4: 60 | G4: 75 | H4: 80 | I4: 63 | J4: 56
A5: 1. 全くその通り | B5: 6 | C5: 5 | D5: 3 | E5: 6 | F5: 4 | G5: 4 | H5: 5 | I5: 2 | J5: 2
A6: 2. どちらかといえばその通り | B6: 6 | C6: 10 | D6: 16 | E6: 13 | F6: 11 | G6: 13 | H6: 23 | I6: 17 | J6: 19
A7: 3. どちらともいえない | B7: 4 | C7: 17 | D7: 15 | E7: 26 | F7: 31 | G7: 38 | H7: 39 | I7: 28 | J7: 26
A8: 4. どちらかといえば違う | B8: 1 | C8: 8 | D8: 3 | E8: 7 | F8: 9 | G8: 12 | H8: 10 | I8: 9 | J8: 4
A9: 5. 全く違う | B9: 1 | C9: 1 | D9: 11 | E9: 7 | F9: 5 | G9: 8 | H9: 3 | I9: 7 | J9: 5
A10: 民間 | B10: 74 | C10: 53 | D10: 59 | E10: 64 | F10: 46 | G10: 59 | H10: 50 | I10: 47 | J10: 48
A11: 1. 全くその通り | B11: 11 | C11: 4 | D11: 6 | E11: 6 | F11: 1 | G11: 3 | H11: 2 | I11: 1 | J11: 1
A12: 2. どちらかといえばその通り | B12: 25 | C12: 16 | D12: 18 | E12: 13 | F12: 14 | G12: 18 | H12: 12 | I12: 17 | J12: 16
A13: 3. どちらともいえない | B13: 27 | C13: 23 | D13: 29 | E13: 23 | F13: 21 | G13: 21 | H13: 16 | I13: 17 | J13: 19
A14: 4. どちらかといえば違う | B14: 7 | C14: 8 | D14: 5 | E14: 14 | F14: 6 | G14: 11 | H14: 9 | I14: 7 | J14: 8
A15: 5. 全く違う | B15: 4 | C15: 2 | D15: 1 | E15: 8 | F15: 4 | G15: 6 | H15: 11 | I15: 5 | J15: 4
B17: 60～65歳（N=48） | C17: 50代（N=97） | D17: 40代（N=105） | E17: 30代（N=123） | F17: 民間企業従業員 30歳未満（N=127） | G17: 60～65歳（N=56） | H17: 50代（N=143） | I17: 40代（N=135） | J17: 30代（N=107） | K17: 国家公務員 30歳未満（N=59）
A18: 全くその通り | B18: =J11/$B$23 -> 0.02083333333 | C18: =(H11+I11)/$C$23 -> 0.03092783505 | D18: =(F11+G11)/$D$23 -> 0.0380952381 | E18: =(D11+E11)/$E$23 -> 0.09756097561 | F18: =(B11+C11)/$F$23 -> 0.1181102362 | G18: =J5/$G$23 -> 0.03571428571 | H18: =(H5+I5)/$H$23 -> 0.04895104895 | I18: =(F5+G5)/$I$23 -> 0.05925925926 | J18: =(D5+E5)/$J$23 -> 0.08411214953 | K18: =(B5+C5)/$K$23 -> 0.186440678
A19: どちらかといえばその通り | B19: =J12/$B$23 -> 0.3333333333 | C19: =(H12+I12)/$C$23 -> 0.2989690722 | D19: =(F12+G12)/$D$23 -> 0.3047619048 | E19: =(D12+E12)/$E$23 -> 0.2520325203 | F19: =(B12+C12)/$F$23 -> 0.3228346457 | G19: =J6/$G$23 -> 0.3392857143 | H19: =(H6+I6)/$H$23 -> 0.2797202797 | I19: =(F6+G6)/$I$23 -> 0.1777777778 | J19: =(D6+E6)/$J$23 -> 0.2710280374 | K19: =(B6+C6)/$K$23 -> 0.2711864407
A20: どちらともいえない | B20: =J13/$B$23 -> 0.3958333333 | C20: =(H13+I13)/$C$23 -> 0.3402061856 | D20: =(F13+G13)/$D$23 -> 0.4 | E20: =(D13+E13)/$E$23 -> 0.4227642276 | F20: =(B13+C13)/$F$23 -> 0.3937007874 | G20: =J7/$G$23 -> 0.4642857143 | H20: =(H7+I7)/$H$23 -> 0.4685314685 | I20: =(F7+G7)/$I$23 -> 0.5111111111 | J20: =(D7+E7)/$J$23 -> 0.3831775701 | K20: =(B7+C7)/$K$23 -> 0.3559322034
A21: どちらかといえば違う | B21: =J14/$B$23 -> 0.1666666667 | C21: =(H14+I14)/$C$23 -> 0.1649484536 | D21: =(F14+G14)/$D$23 -> 0.1619047619 | E21: =(D14+E14)/$E$23 -> 0.1544715447 | F21: =(B14+C14)/$F$23 -> 0.1181102362 | G21: =J8/$G$23 -> 0.07142857143 | H21: =(H8+I8)/$H$23 -> 0.1328671329 | I21: =(F8+G8)/$I$23 -> 0.1555555556 | J21: =(D8+E8)/$J$23 -> 0.09345794393 | K21: =(B8+C8)/$K$23 -> 0.1525423729
A22: 全く違う | B22: =J15/$B$23 -> 0.08333333333 | C22: =(H15+I15)/$C$23 -> 0.1649484536 | D22: =(F15+G15)/$D$23 -> 0.09523809524 | E22: =(D15+E15)/$E$23 -> 0.07317073171 | F22: =(B15+C15)/$F$23 -> 0.04724409449 | G22: =J9/$G$23 -> 0.08928571429 | H22: =(H9+I9)/$H$23 -> 0.06993006993 | I22: =(F9+G9)/$I$23 -> 0.0962962963 | J22: =(D9+E9)/$J$23 -> 0.1682242991 | K22: =(B9+C9)/$K$23 -> 0.03389830508
B23: =J10 -> 48 | C23: =H10+I10 -> 97 | D23: =F10+G10 -> 105 | E23: =D10+E10 -> 123 | F23: =B10+C10 -> 127 | G23: =J4 -> 56 | H23: =H4+I4 -> 143 | I23: =F4+G4 -> 135 | J23: =D4+E4 -> 107 | K23: =B4+C4 -> 59

Sheet 【図2-11-1】
A1: 図２－１１－１
A2: 「あなた自身は、今後、転職することを考えていますか。」という質問への回答状況
B3: 1. 50人未満 | C3: 2. 50人以上300人未満 | D3: 3. 300人以上1,000人未満 | E3: 4. 1,000人以上5,000人未満 | F3: 5. 5,000人以上 | G3: 6. 公務 | H3: 総計
A4: 1. 現在、転職活動中である | B4: 12 | C4: 6 | D4: 9 | E4: 6 | F4: 8 | G4: 16 | H4: 57
A5: 2. 数年以内に転職することを考えている | B5: 11 | C5: 17 | D5: 15 | E5: 10 | F5: 9 | G5: 56 | H5: 118
A6: 3. 将来的には転職することを考えている | B6: 23 | C6: 34 | D6: 16 | E6: 7 | F6: 16 | G6: 87 | H6: 183
A7: 4. どちらともいえない | B7: 31 | C7: 29 | D7: 19 | E7: 22 | F7: 19 | G7: 107 | H7: 227
A8: 5. 全く考えていない | B8: 43 | C8: 45 | D8: 29 | E8: 29 | F8: 35 | G8: 234 | H8: 415
A9: 総計 | B9: 120 | C9: 131 | D9: 88 | E9: 74 | F9: 87 | G9: 500 | H9: 1000
B11: 1. 50人未満 | C11: 2. 50人以上300人未満 | D11: 3. 300人以上1,000人未満 | E11: 4. 1,000人以上5,000人未満 | F11: 5. 5,000人以上 | G11: 民間全体 | H11: 6. 公務
A12: 1. 現在、転職活動中である | B12: =B4/B$9 -> 0.1 | C12: =C4/C$9 -> 0.04580152672 | D12: 0.1022727273 | E12: 0.08108108108 | F12: 0.09195402299 | G12: =SUM(B4:F4)/500 -> 0.082 | H12: =G4/G$9 -> 0.032
A13: 2. 数年以内に転職することを考えている | B13: =B5/B$9 -> 0.09166666667 | C13: 0.1297709924 | D13: 0.1704545455 | E13: 0.1351351351 | F13: 0.1034482759 | G13: =SUM(B5:F5)/500 -> 0.124 | H13: =G5/G$9 -> 0.112
A14: 3. 将来的には転職することを考えている | B14: 0.1916666667 | C14: 0.2595419847 | D14: 0.1818181818 | E14: 0.09459459459 | F14: 0.183908046 | G14: 0.192 | H14: 0.174
A15: 4. どちらともいえない | B15: 0.2583333333 | C15: 0.2213740458 | D15: 0.2159090909 | E15: 0.2972972973 | F15: 0.2183908046 | G15: 0.24 | H15: 0.214
A16: 5. 全く考えていない | B16: 0.3583333333 | C16: 0.3435114504 | D16: 0.3295454545 | E16: 0.3918918919 | F16: 0.4022988506 | G16: 0.362 | H16: 0.468
B18: 5000人以上（N=87） | C18: 1000人以上5000人未満（N=74） | D18: 300人以上1000人未満（N=88） | E18: 50人以上300人未満（N=131） | F18: 50人未満（N=120） | G18: 民間企業従業員 全体（N=500） | H18: 国家公務員（N=500）
A19: 現在、転職活動中である | B19: =F12 -> 0.09195402299 | C19: =E12 -> 0.08108108108 | D19: =D12 -> 0.1022727273 | E19: =C12 -> 0.04580152672 | F19: =B12 -> 0.1 | G19: =G12 -> 0.082 | H19: =H12 -> 0.032
A20: 数年以内に転職することを考えている | B20: =F13 -> 0.1034482759 | C20: =E13 -> 0.1351351351 | D20: =D13 -> 0.1704545455 | E20: =C13 -> 0.1297709924 | F20: =B13 -> 0.09166666667 | G20: =G13 -> 0.124 | H20: 0.112
A21: 将来的には転職することを考えている | B21: 0.183908046 | C21: 0.09459459459 | D21: 0.1818181818 | E21: 0.2595419847 | F21: 0.1916666667 | G21: 0.192 | H21: 0.174
A22: どちらともいえない | B22: 0.2183908046 | C22: 0.2972972973 | D22: 0.2159090909 | E22: 0.2213740458 | F22: 0.2583333333 | G22: 0.24 | H22: 0.214
A23: 全く考えていない | B23: 0.4022988506 | C23: 0.3918918919 | D23: 0.3295454545 | E23: 0.3435114504 | F23: 0.3583333333 | G23: 0.362 | H23: 0.468

Sheet 【図2-11-2】
A1: 図２－１１－２
A2: 「あなた自身は、今後、転職することを考えていますか。」という質問への回答状況（年齢層別）
B3: 1. 24歳以下 | C3: 2. 25～29歳 | D3: 3. 30～34歳 | E3: 4. 35～39歳 | F3: 5. 40～44歳 | G3: 6. 45～49歳 | H3: 7. 50～54歳 | I3: 8. 55～59歳 | J3: 9. 60～65歳
A4: 国家公務員 | B4: 18 | C4: 41 | D4: 48 | E4: 59 | F4: 60 | G4: 75 | H4: 80 | I4: 63 | J4: 56
A5: 1. 現在、転職活動中である | B5: 1 | C5: 3 | D5: 4 | E5: 2 | F5: 2 | G5: 1 | H5: 1 | I5: 1 | J5: 1
A6: 2. 数年以内に転職することを考えている | B6: 2 | C6: 5 | D6: 6 | E6: 6 | F6: 5 | G6: 5 | H6: 8 | I6: 8 | J6: 11
A7: 3. 将来的には転職することを考えている | B7: 4 | C7: 8 | D7: 10 | E7: 10 | F7: 15 | G7: 12 | H7: 13 | I7: 9 | J7: 6
A8: 4. どちらともいえない | B8: 5 | C8: 10 | D8: 9 | E8: 14 | F8: 10 | G8: 16 | H8: 22 | I8: 12 | J8: 9
A9: 5. 全く考えていない | B9: 6 | C9: 15 | D9: 19 | E9: 27 | F9: 28 | G9: 41 | H9: 36 | I9: 33 | J9: 29
A10: 民間 | B10: 74 | C10: 53 | D10: 59 | E10: 64 | F10: 46 | G10: 59 | H10: 50 | I10: 47 | J10: 48
A11: 1. 現在、転職活動中である | B11: 16 | C11: 2 | D11: 3 | E11: 7 | F11: 4 | G11: 3 | H11: 4 | I11: 1 | J11: 1
A12: 2. 数年以内に転職することを考えている | B12: 12 | C12: 7 | D12: 12 | E12: 10 | F12: 2 | G12: 4 | H12: 7 | I12: 1 | J12: 7
A13: 3. 将来的には転職することを考えている | B13: 22 | C13: 15 | D13: 13 | E13: 19 | F13: 10 | G13: 5 | H13: 5 | I13: 6 | J13: 1
A14: 4. どちらともいえない | B14: 11 | C14: 11 | D14: 12 | E14: 11 | F14: 14 | G14: 20 | H14: 12 | I14: 11 | J14: 18
A15: 5. 全く考えていない | B15: 13 | C15: 18 | D15: 19 | E15: 17 | F15: 16 | G15: 27 | H15: 22 | I15: 28 | J15: 21
B19: 60～65歳（N=48） | C19: 50代（N=97） | D19: 40代（N=105） | E19: 30代（N=123） | F19: 民間企業従業員 30歳未満（N=127） | G19: 60～65歳（N=56） | H19: 50代（N=143） | I19: 40代（N=135） | J19: 30代（N=107） | K19: 国家公務員 30歳未満（N=59）
A20: 現在、転職活動中である | B20: =J11/$B$25 -> 0.02083333333 | C20: =(H11+I11)/$C$25 -> 0.05154639175 | D20: =(F11+G11)/$D$25 -> 0.06666666667 | E20: =(D11+E11)/$E$25 -> 0.08130081301 | F20: =(B11+C11)/$F$25 -> 0.1417322835 | G20: =J5/$G$25 -> 0.01785714286 | H20: =(H5+I5)/$H$25 -> 0.01398601399 | I20: =(F5+G5)/$I$25 -> 0.02222222222 | J20: =(D5+E5)/$J$25 -> 0.05607476636 | K20: =(B5+C5)/$K$25 -> 0.06779661017
A21: 数年以内に転職することを考えている | B21: =J12/$B$25 -> 0.1458333333 | C21: =(H12+I12)/$C$25 -> 0.0824742268 | D21: =(F12+G12)/$D$25 -> 0.05714285714 | E21: =(D12+E12)/$E$25 -> 0.1788617886 | F21: =(B12+C12)/$F$25 -> 0.1496062992 | G21: =J6/$G$25 -> 0.1964285714 | H21: =(H6+I6)/$H$25 -> 0.1118881119 | I21: =(F6+G6)/$I$25 -> 0.07407407407 | J21: =(D6+E6)/$J$25 -> 0.1121495327 | K21: =(B6+C6)/$K$25 -> 0.1186440678
A22: 将来的には転職することを考えている | B22: =J13/$B$25 -> 0.02083333333 | C22: =(H13+I13)/$C$25 -> 0.1134020619 | D22: =(F13+G13)/$D$25 -> 0.1428571429 | E22: =(D13+E13)/$E$25 -> 0.2601626016 | F22: =(B13+C13)/$F$25 -> 0.2913385827 | G22: =J7/$G$25 -> 0.1071428571 | H22: =(H7+I7)/$H$25 -> 0.1538461538 | I22: =(F7+G7)/$I$25 -> 0.2 | J22: =(D7+E7)/$J$25 -> 0.1869158879 | K22: =(B7+C7)/$K$25 -> 0.2033898305
A23: どちらともいえない | B23: =J14/$B$25 -> 0.375 | C23: =(H14+I14)/$C$25 -> 0.2371134021 | D23: =(F14+G14)/$D$25 -> 0.3238095238 | E23: =(D14+E14)/$E$25 -> 0.1869918699 | F23: =(B14+C14)/$F$25 -> 0.1732283465 | G23: =J8/$G$25 -> 0.1607142857 | H23: =(H8+I8)/$H$25 -> 0.2377622378 | I23: =(F8+G8)/$I$25 -> 0.1925925926 | J23: =(D8+E8)/$J$25 -> 0.214953271 | K23: =(B8+C8)/$K$25 -> 0.2542372881
A24: 全く考えていない | B24: =J15/$B$25 -> 0.4375 | C24: =(H15+I15)/$C$25 -> 0.5154639175 | D24: =(F15+G15)/$D$25 -> 0.4095238095 | E24: =(D15+E15)/$E$25 -> 0.2926829268 | F24: =(B15+C15)/$F$25 -> 0.2440944882 | G24: =J9/$G$25 -> 0.5178571429 | H24: =(H9+I9)/$H$25 -> 0.4825174825 | I24: =(F9+G9)/$I$25 -> 0.5111111111 | J24: =(D9+E9)/$J$25 -> 0.4299065421 | K24: =(B9+C9)/$K$25 -> 0.3559322034
B25: =J10 -> 48 | C25: =H10+I10 -> 97 | D25: =F10+G10 -> 105 | E25: =D10+E10 -> 123 | F25: =B10+C10 -> 127 | G25: =J4 -> 56 | H25: =H4+I4 -> 143 | I25: =F4+G4 -> 135 | J25: =D4+E4 -> 107 | K25: =B4+C4 -> 59

Sheet 【図2-12】
A1: 図２－１２
A2: 「働くうえで、自分にとって最も重要と感じること」という質問への回答状況
B3: 1. 現在、転職活動中である | C3: 2. 数年以内に転職することを考えている | D3: 3. 将来的には転職することを考えている | E3: 4. どちらともいえない | F3: 5. 全く考えていない | G3: 総計
A4: 国家公務員 | B4: 16 | C4: 56 | D4: 87 | E4: 107 | F4: 234 | G4: 500
A5: 1. 自分の知識・スキルの専門性を高め、活用できること | B5: 4 | C5: 13 | D5: 15 | E5: 12 | F5: 38 | G5: 82
A6: 2. 組織の中で、責任のある役割を担うこと | C6: 10 | D6: 7 | E6: 9 | F6: 19 | G6: 45
A7: 3. 仕事を自分のやり方で仕切っていくこと | B7: 1 | C7: 3 | D7: 8 | E7: 7 | F7: 12 | G7: 31
A8: 5. クリエイティブに新しいことを生み出したり、自身が会社や事業を起こすこと | C8: 4 | D8: 3 | E8: 1 | F8: 8 | G8: 16
A9: 6. 社会に貢献したり、奉仕したりすること | B9: 2 | C9: 2 | D9: 5 | E9: 9 | F9: 10 | G9: 28
A10: 7. 解決困難な問題に挑むこと | B10: 2 | C10: 1 | D10: 1 | F10: 1 | G10: 5
A11: 8. ワーク・ライフ・バランス | B11: 3 | C11: 7 | D11: 18 | E11: 29 | F11: 43 | G11: 100
A12: 4. 経済的な安定 | B12: 4 | C12: 16 | D12: 30 | E12: 40 | F12: 103 | G12: 193
A13: 民間 | B13: 41 | C13: 62 | D13: 96 | E13: 120 | F13: 181 | G13: 500
A14: 1. 自分の知識・スキルの専門性を高め、活用できること | B14: 14 | C14: 12 | D14: 16 | E14: 16 | F14: 31 | G14: 89
A15: 2. 組織の中で、責任のある役割を担うこと | B15: 1 | C15: 18 | D15: 12 | E15: 16 | F15: 10 | G15: 57
A16: 3. 仕事を自分のやり方で仕切っていくこと | B16: 1 | C16: 5 | D16: 11 | E16: 9 | F16: 3 | G16: 29
A17: 5. クリエイティブに新しいことを生み出したり、自身が会社や事業を起こすこと | B17: 2 | C17: 4 | D17: 2 | E17: 4 | F17: 10 | G17: 22
A18: 6. 社会に貢献したり、奉仕したりすること | B18: 5 | C18: 2 | D18: 1 | E18: 5 | F18: 7 | G18: 20
A19: 7. 解決困難な問題に挑むこと | B19: 1 | D19: 1 | E19: 1 | F19: 3 | G19: 6
A20: 8. ワーク・ライフ・バランス | B20: 6 | C20: 3 | D20: 10 | E20: 18 | F20: 37 | G20: 74
A21: 4. 経済的な安定 | B21: 11 | C21: 18 | D21: 43 | E21: 51 | F21: 80 | G21: 203
B23: 将来的には転職することを考えている（N=96） | C23: 数年以内に転職することを考えている（N=62） | D23: 現在、転職活動中である（N=41) | E23: 民間企業従業員 全体（N=500） | F23: 将来的には転職することを考えている（N=87） | G23: 数年以内に転職することを考えている（N=56） | H23: 現在、転職活動中である（N=16) | I23: 国家公務員 全体（N=500)
A24: 自分の知識・スキルの専門性を高め、活用できること | B24: =D14/D$13 -> 0.1666666667 | C24: =C14/C$13 -> 0.1935483871 | D24: =B14/B$13 -> 0.3414634146 | E24: =G14/500 -> 0.178 | F24: =D5/D$4 -> 0.1724137931 | G24: =C5/C$4 -> 0.2321428571 | H24: =B5/B$4 -> 0.25 | I24: =G5/$G$4 -> 0.164
A25: 組織の中で、責任のある役割を担うこと | B25: 0.125 | C25: 0.2903225806 | D25: 0.0243902439 | E25: 0.114 | F25: =D6/D$4 -> 0.08045977011 | G25: =C6/C$4 -> 0.1785714286 | H25: =B6/B$4 -> 0 | I25: =G6/$G$4 -> 0.09
A26: 仕事を自分のやり方で仕切っていくこと | B26: 0.1145833333 | C26: 0.08064516129 | D26: 0.0243902439 | E26: 0.058 | F26: 0.09195402299 | G26: 0.05357142857 | H26: 0.0625 | I26: 0.062
A27: クリエイティブに新しいことを生み出したり、自身が会社や事業を起こすこと | B27: 0.02083333333 | C27: 0.06451612903 | D27: 0.0487804878 | E27: 0.044 | F27: 0.03448275862 | G27: 0.07142857143 | H27: 0 | I27: 0.032
A28: 社会に貢献したり、奉仕したりすること | B28: 0.01041666667 | C28: 0.03225806452 | D28: 0.1219512195 | E28: 0.04 | F28: 0.05747126437 | G28: 0.03571428571 | H28: 0.125 | I28: 0.056
A29: 解決困難な問題に挑むこと | B29: 0.01041666667 | C29: 0 | D29: 0.0243902439 | E29: 0.012 | F29: 0.01149425287 | G29: 0.01785714286 | H29: 0.125 | I29: 0.01
A30: ワーク・ライフ・バランス | B30: 0.1041666667 | C30: 0.04838709677 | D30: 0.1463414634 | E30: 0.148 | F30: 0.2068965517 | G30: 0.125 | H30: 0.1875 | I30: 0.2
A31: 経済的な安定 | B31: 0.4479166667 | C31: 0.2903225806 | D31: 0.2682926829 | E31: 0.406 | F31: 0.3448275862 | G31: 0.2857142857 | H31: 0.25 | I31: 0.386

Sheet 【図2-13】
A1: 図２－１３
A2: 「あなたは、業務に関する知識・スキルの保有状況を組織内で共有・公開したいと思う。」という質問への回答状況
B3: 1. 現在、転職活動中である | C3: 2. 数年以内に転職することを考えている | D3: 3. 将来的には転職することを考えている | E3: 4. どちらともいえない | F3: 5. 全く考えていない | G3: 総計
A4: 国家公務員 | B4: 16 | C4: 56 | D4: 87 | E4: 107 | F4: 234 | G4: 500
A5: 1. 全くその通り | B5: 2 | C5: 10 | D5: 13 | E5: 8 | F5: 22 | G5: 55
A6: 2. どちらかといえばその通り | B6: 4 | C6: 23 | D6: 24 | E6: 18 | F6: 59 | G6: 128
A7: 3. どちらともいえない | B7: 6 | C7: 20 | D7: 35 | E7: 49 | F7: 87 | G7: 197
A8: 4. どちらかといえば違う | B8: 2 | C8: 3 | D8: 11 | E8: 19 | F8: 37 | G8: 72
A9: 5. 全く違う | B9: 2 | D9: 4 | E9: 13 | F9: 29 | G9: 48
A10: 民間 | B10: 41 | C10: 62 | D10: 96 | E10: 120 | F10: 181 | G10: 500
A11: 1. 全くその通り | B11: 10 | C11: 4 | D11: 13 | E11: 3 | F11: 12 | G11: 42
A12: 2. どちらかといえばその通り | B12: 12 | C12: 28 | D12: 26 | E12: 37 | F12: 50 | G12: 153
A13: 3. どちらともいえない | B13: 7 | C13: 16 | D13: 35 | E13: 52 | F13: 67 | G13: 177
A14: 4. どちらかといえば違う | B14: 5 | C14: 9 | D14: 13 | E14: 18 | F14: 26 | G14: 71
A15: 5. 全く違う | B15: 7 | C15: 5 | D15: 9 | E15: 10 | F15: 26 | G15: 57
B17: 積極的な転職意向がある者 （N=103) | C17: 民間企業従業員 全体 （N=500） | D17: 積極的な転職意向がある者 （N=72) | E17: 国家公務員 全体 （N=500)
A18: 全くその通り | B18: =(B11+C11)/103 -> 0.1359223301 | C18: =G11/500 -> 0.084 | D18: =(B5+C5)/72 -> 0.1666666667 | E18: =G5/500 -> 0.11
A19: どちらかといえばその通り | B19: =(B12+C12)/103 -> 0.3883495146 | C19: =G12/500 -> 0.306 | D19: =(B6+C6)/72 -> 0.375 | E19: =G6/500 -> 0.256
A20: どちらともいえない | B20: =(B13+C13)/103 -> 0.2233009709 | C20: 0.354 | D20: 0.3611111111 | E20: 0.394
A21: どちらかといえば違う | B21: 0.1359223301 | C21: 0.142 | D21: 0.06944444444 | E21: 0.144
A22: 全く違う | B22: 0.1165048544 | C22: 0.114 | D22: 0.02777777778 | E22: 0.096

Sheet 【図2-14-1】
A1: 図２－１４－１
A2: 「あなたは、上司や人事担当者には、従業員（職員）一人一人のキャリア志向、成した成果などについて、もっと丁寧に向き合ってほしいと思う。」という質問への回答状況
B3: 1. 現在、転職活動中である | C3: 2. 数年以内に転職することを考えている | D3: 3. 将来的には転職することを考えている | E3: 4. どちらともいえない | F3: 5. 全く考えていない | G3: 総計
A4: 国家公務員 | B4: 16 | C4: 56 | D4: 87 | E4: 107 | F4: 234 | G4: 500
A5: 1. 全くその通り | B5: 4 | C5: 10 | D5: 10 | E5: 9 | F5: 28 | G5: 61
A6: 2. どちらかといえばその通り | B6: 3 | C6: 17 | D6: 33 | E6: 37 | F6: 74 | G6: 164
A7: 3. どちらともいえない | B7: 7 | C7: 23 | D7: 35 | E7: 47 | F7: 104 | G7: 216
A8: 4. どちらかといえば違う | C8: 4 | D8: 6 | E8: 10 | F8: 22 | G8: 42
A9: 5. 全く違う | B9: 2 | C9: 2 | D9: 3 | E9: 4 | F9: 6 | G9: 17
A10: 民間 | B10: 41 | C10: 62 | D10: 96 | E10: 120 | F10: 181 | G10: 500
A11: 1. 全くその通り | B11: 14 | C11: 8 | D11: 12 | E11: 6 | F11: 10 | G11: 50
A12: 2. どちらかといえばその通り | B12: 9 | C12: 26 | D12: 34 | E12: 45 | F12: 50 | G12: 164
A13: 3. どちらともいえない | B13: 13 | C13: 19 | D13: 42 | E13: 46 | F13: 92 | G13: 212
A14: 4. どちらかといえば違う | B14: 2 | C14: 5 | D14: 7 | E14: 17 | F14: 14 | G14: 45
A15: 5. 全く違う | B15: 3 | C15: 4 | D15: 1 | E15: 6 | F15: 15 | G15: 29
B17: 積極的な転職意向がある者 （N=103) | C17: 民間企業従業員 全体 （N=500） | D17: 積極的な転職意向がある者 （N=72) | E17: 国家公務員 全体 （N=500)
A18: 全くその通り | B18: =(B11+C11)/103 -> 0.213592233 | C18: =G11/500 -> 0.1 | D18: =(B5+C5)/72 -> 0.1944444444 | E18: =G5/500 -> 0.122
A19: どちらかといえばその通り | B19: =(B12+C12)/103 -> 0.3398058252 | C19: =G12/500 -> 0.328 | D19: =(B6+C6)/72 -> 0.2777777778 | E19: =G6/500 -> 0.328
A20: どちらともいえない | B20: =(B13+C13)/103 -> 0.3106796117 | C20: 0.424 | D20: 0.4166666667 | E20: =G7/500 -> 0.432
A21: どちらかといえば違う | B21: =(B14+C14)/103 -> 0.06796116505 | C21: 0.09 | D21: 0.05555555556 | E21: =G8/500 -> 0.084
A22: 全く違う | B22: =(B15+C15)/103 -> 0.06796116505 | C22: 0.058 | D22: 0.05555555556 | E22: =G9/500 -> 0.034

Sheet 【図2-14-2】
A1: 図２－１４－２
A2: 「あなたは、上司や人事担当者には、従業員（職員）一人一人のキャリア志向、成した成果などについて、もっと丁寧に向き合ってほしいと思う。」という質問への回答状況（年齢層別）
B3: 1. 24歳以下 | C3: 2. 25～29歳 | D3: 3. 30～34歳 | E3: 4. 35～39歳 | F3: 5. 40～44歳 | G3: 6. 45～49歳 | H3: 7. 50～54歳 | I3: 8. 55～59歳 | J3: 9. 60～65歳 | K3: 総計
A4: 国家公務員 | B4: 18 | C4: 41 | D4: 48 | E4: 59 | F4: 60 | G4: 75 | H4: 80 | I4: 63 | J4: 56 | K4: 500
A5: 1. 全くその通り | B5: 4 | C5: 5 | D5: 7 | E5: 8 | F5: 7 | G5: 11 | H5: 4 | I5: 10 | J5: 5 | K5: 61
A6: 2. どちらかといえばその通り | B6: 7 | C6: 16 | D6: 14 | E6: 19 | F6: 18 | G6: 22 | H6: 28 | I6: 16 | J6: 24 | K6: 164
A7: 3. どちらともいえない | B7: 5 | C7: 14 | D7: 21 | E7: 24 | F7: 28 | G7: 35 | H7: 38 | I7: 30 | J7: 21 | K7: 216
A8: 4. どちらかといえば違う | B8: 1 | C8: 6 | D8: 1 | E8: 6 | F8: 4 | G8: 7 | H8: 7 | I8: 5 | J8: 5 | K8: 42
A9: 5. 全く違う | B9: 1 | D9: 5 | E9: 2 | F9: 3 | H9: 3 | I9: 2 | J9: 1 | K9: 17
A10: 民間 | B10: 74 | C10: 53 | D10: 59 | E10: 64 | F10: 46 | G10: 59 | H10: 50 | I10: 47 | J10: 48 | K10: 500
A11: 1. 全くその通り | B11: 11 | C11: 2 | D11: 4 | E11: 9 | F11: 3 | G11: 6 | H11: 8 | I11: 3 | J11: 4 | K11: 50
A12: 2. どちらかといえばその通り | B12: 33 | C12: 17 | D12: 22 | E12: 24 | F12: 12 | G12: 19 | H12: 12 | I12: 12 | J12: 13 | K12: 164
A13: 3. どちらともいえない | B13: 23 | C13: 25 | D13: 26 | E13: 25 | F13: 21 | G13: 24 | H13: 22 | I13: 20 | J13: 26 | K13: 212
A14: 4. どちらかといえば違う | B14: 4 | C14: 8 | D14: 5 | E14: 4 | F14: 5 | G14: 6 | H14: 3 | I14: 8 | J14: 2 | K14: 45
A15: 5. 全く違う | B15: 3 | C15: 1 | D15: 2 | E15: 2 | F15: 5 | G15: 4 | H15: 5 | I15: 4 | J15: 3 | K15: 29
B17: 60～65歳（N=48） | C17: 50代（N=97） | D17: 40代（N=105） | E17: 30代（N=123） | F17: 民間企業従業員 30歳未満（N=127） | G17: 60～65歳（N=56） | H17: 50代（N=143） | I17: 40代（N=135） | J17: 30代（N=107） | K17: 国家公務員 30歳未満（N=59）
A18: 全くその通り | B18: =J11/$B$23 -> 0.08333333333 | C18: =(H11+I11)/$C$23 -> 0.1134020619 | D18: =(F11+G11)/$D$23 -> 0.08571428571 | E18: =(D11+E11)/$E$23 -> 0.1056910569 | F18: =(B11+C11)/$F$23 -> 0.1023622047 | G18: =J5/$G$23 -> 0.08928571429 | H18: =(H5+I5)/$H$23 -> 0.0979020979 | I18: =(F5+G5)/$I$23 -> 0.1333333333 | J18: =(D5+E5)/$J$23 -> 0.1401869159 | K18: =(B5+C5)/$K$23 -> 0.1525423729
A19: どちらかといえばその通り | B19: =J12/$B$23 -> 0.2708333333 | C19: =(H12+I12)/$C$23 -> 0.2474226804 | D19: =(F12+G12)/$D$23 -> 0.2952380952 | E19: =(D12+E12)/$E$23 -> 0.3739837398 | F19: =(B12+C12)/$F$23 -> 0.3937007874 | G19: =J6/$G$23 -> 0.4285714286 | H19: =(H6+I6)/$H$23 -> 0.3076923077 | I19: =(F6+G6)/$I$23 -> 0.2962962963 | J19: =(D6+E6)/$J$23 -> 0.308411215 | K19: =(B6+C6)/$K$23 -> 0.3898305085
A20: どちらともいえない | B20: =J13/$B$23 -> 0.5416666667 | C20: =(H13+I13)/$C$23 -> 0.4329896907 | D20: =(F13+G13)/$D$23 -> 0.4285714286 | E20: =(D13+E13)/$E$23 -> 0.4146341463 | F20: =(B13+C13)/$F$23 -> 0.3779527559 | G20: =J7/$G$23 -> 0.375 | H20: =(H7+I7)/$H$23 -> 0.4755244755 | I20: =(F7+G7)/$I$23 -> 0.4666666667 | J20: =(D7+E7)/$J$23 -> 0.4205607477 | K20: =(B7+C7)/$K$23 -> 0.3220338983
A21: どちらかといえば違う | B21: =J14/$B$23 -> 0.04166666667 | C21: =(H14+I14)/$C$23 -> 0.1134020619 | D21: =(F14+G14)/$D$23 -> 0.1047619048 | E21: =(D14+E14)/$E$23 -> 0.07317073171 | F21: =(B14+C14)/$F$23 -> 0.09448818898 | G21: =J8/$G$23 -> 0.08928571429 | H21: =(H8+I8)/$H$23 -> 0.08391608392 | I21: =(F8+G8)/$I$23 -> 0.08148148148 | J21: =(D8+E8)/$J$23 -> 0.06542056075 | K21: =(B8+C8)/$K$23 -> 0.1186440678
A22: 全く違う | B22: =J15/$B$23 -> 0.0625 | C22: =(H15+I15)/$C$23 -> 0.09278350515 | D22: =(F15+G15)/$D$23 -> 0.08571428571 | E22: =(D15+E15)/$E$23 -> 0.0325203252 | F22: =(B15+C15)/$F$23 -> 0.03149606299 | G22: =J9/$G$23 -> 0.01785714286 | H22: =(H9+I9)/$H$23 -> 0.03496503497 | I22: =(F9+G9)/$I$23 -> 0.02222222222 | J22: =(D9+E9)/$J$23 -> 0.06542056075 | K22: =(B9+C9)/$K$23 -> 0.01694915254
B23: =J10 -> 48 | C23: =H10+I10 -> 97 | D23: =F10+G10 -> 105 | E23: =D10+E10 -> 123 | F23: =B10+C10 -> 127 | G23: =J4 -> 56 | H23: =H4+I4 -> 143 | I23: =F4+G4 -> 135 | J23: =D4+E4 -> 107 | K23: =B4+C4 -> 59
